[Event "Titled Tuesday Blitz February 28 Late 2023"]
[White "Yu, Yangyi"]
[Black "Zochowski, Kacper"]
[WhiteFideId "8603820"]
[BlackFideId "1125494"]
[WhiteElo "2783"]
[BlackElo "2222"]
[Result "1-0"]
[Round "01"]
[TimeControl "180+2"]
[Date "2023.02.28"]
[WhiteClock "0:00:31"]
[BlackClock "0:00:10"]

1. Nf3 {[%clk 0:02:57]}  d6 {[%clk 0:02:58]} 2. g3 {[%clk 0:02:57]}  e5 {[%clk 0:02:59]} 3. d3 {[%clk 0:02:53]}  Nf6 {[%clk 0:02:58]} 4. Bg2 {[%clk 0:02:53]}  Be7 {[%clk 0:02:59]} 5. O-O {[%clk 0:02:53]}  O-O {[%clk 0:03:00]} 6. c4 {[%clk 0:02:54]}  Be6 {[%clk 0:02:58]} 7. Ng5 {[%clk 0:02:50]}  Bc8 {[%clk 0:02:57]} 8. Nc3 {[%clk 0:02:50]}  h6 {[%clk 0:02:58]} 9. Nf3 {[%clk 0:02:49]}  Be6 {[%clk 0:02:58]} 10. b4 {[%clk 0:02:47]}  Qd7 {[%clk 0:02:58]} 11. Re1 {[%clk 0:02:45]}  a5 {[%clk 0:02:55]} 12. b5 {[%clk 0:02:44]}  Bh3 {[%clk 0:02:36]} 13. Bh1 {[%clk 0:02:42]}  Qc8 {[%clk 0:02:33]} 14. a4 {[%clk 0:02:32]}  Nbd7 {[%clk 0:02:33]} 15. Ba3 {[%clk 0:02:32]}  b6 {[%clk 0:02:30]} 16. Rc1 {[%clk 0:02:29]}  Qe8 {[%clk 0:02:08]} 17. e3 {[%clk 0:02:23]}  Rd8 {[%clk 0:02:07]} 18. d4 {[%clk 0:02:19]}  Bg4 {[%clk 0:02:05]} 19. Qc2 {[%clk 0:02:16]}  Nh7 {[%clk 0:01:56]} 20. Nd5 {[%clk 0:02:15]}  Rc8 {[%clk 0:01:52]} 21. Nxe5 {[%clk 0:01:51]}  Nxe5 {[%clk 0:01:39]} 22. dxe5 {[%clk 0:01:51]}  Ng5 {[%clk 0:01:40]} 23. h4 {[%clk 0:01:37]}  Nf3+ {[%clk 0:01:00]} 24. Bxf3 {[%clk 0:01:36]}  Bxf3 {[%clk 0:01:00]} 25. e4 {[%clk 0:01:36]}  Bxh4 {[%clk 0:00:38]} 26. Qd3 {[%clk 0:01:28]}  Bg5 {[%clk 0:00:26]} 27. exd6 {[%clk 0:01:11]}  Bxc1 {[%clk 0:00:24]} 28. Rxc1 {[%clk 0:00:47]}  Bxe4 {[%clk 0:00:22]} 29. Ne7+ {[%clk 0:00:44]}  Qxe7 {[%clk 0:00:21]} 30. dxe7 {[%clk 0:00:44]}  Bxd3 {[%clk 0:00:22]} 31. exf8=Q+ {[%clk 0:00:44]}  Rxf8 {[%clk 0:00:22]} 32. Bxf8 {[%clk 0:00:45]}  Kxf8 {[%clk 0:00:23]} 33. Rc3 {[%clk 0:00:40]}  Bf5 {[%clk 0:00:22]} 34. c5 {[%clk 0:00:40]}  Ke7 {[%clk 0:00:12]} 35. cxb6 {[%clk 0:00:40]}  cxb6 {[%clk 0:00:13]} 36. Rc6 {[%clk 0:00:40]}  Bg4 {[%clk 0:00:07]} 37. Rxb6 {[%clk 0:00:38]}  Bd1 {[%clk 0:00:08]} 38. Ra6 {[%clk 0:00:33]}  Bxa4 {[%clk 0:00:08]} 39. Rxa5 {[%clk 0:00:33]}  Bb3 {[%clk 0:00:08]} 40. b6 {[%clk 0:00:33]}  Kd6 {[%clk 0:00:09]} 41. Rb5 {[%clk 0:00:31]}  Bc4 {[%clk 0:00:07]} 42. b7 {[%clk 0:00:29]}  Bxb5 {[%clk 0:00:07]} 43. b8=Q+ {[%clk 0:00:29]}  Kc5 {[%clk 0:00:08]} 44. Qc7+ {[%clk 0:00:29]}  Bc6 {[%clk 0:00:08]} 45. Qxf7 {[%clk 0:00:29]}  Kd6 {[%clk 0:00:09]} 46. Qxg7 {[%clk 0:00:30]}  h5 {[%clk 0:00:09]} 47. f4 {[%clk 0:00:29]}  Bd5 {[%clk 0:00:09]} 48. Qe5+ {[%clk 0:00:29]}  Kc6 {[%clk 0:00:09]} 49. Qxh5 {[%clk 0:00:30]}  Kd6 {[%clk 0:00:09]} 50. Qe5+ {[%clk 0:00:31]}  Kc6 {[%clk 0:00:09]} 51. Kf2 {[%clk 0:00:32]}  Kc5 {[%clk 0:00:10]} 52. Ke3 {[%clk 0:00:33]}  Kc6 {[%clk 0:00:11]} 53. Kd4 {[%clk 0:00:33]}  Bb3 {[%clk 0:00:12]} 54. Qc5+ {[%clk 0:00:32]}  Kd7 {[%clk 0:00:11]} 55. Qb5+ {[%clk 0:00:32]}  Kd6 {[%clk 0:00:12]} 56. Qxb3 {[%clk 0:00:33]}  Kc7 {[%clk 0:00:13]} 57. Ke5 {[%clk 0:00:32]}  Kc6 {[%clk 0:00:13]} 58. f5 {[%clk 0:00:31]}  Kc7 {[%clk 0:00:13]} 59. Qb5 {[%clk 0:00:31]}  Kd8 {[%clk 0:00:13]} 60. Kd6 {[%clk 0:00:30]}  Kc8 {[%clk 0:00:12]} 61. f6 {[%clk 0:00:31]}  Kd8 {[%clk 0:00:10]} 62. Qd7# {[%clk 0:00:31]} 1-0


[Site "https://www.chess.com"]

[Event "Titled Tuesday Blitz February 28 Late 2023"]
[White "Caruana, Fabiano"]
[Black "Martin Carmona, Gaston Manuel"]
[WhiteFideId "2020009"]
[BlackFideId "22284567"]
[WhiteElo "2818"]
[BlackElo "2245"]
[Result "1-0"]
[Round "01"]
[TimeControl "180+2"]
[Date "2023.02.28"]
[WhiteClock "0:00:58"]
[BlackClock "0:00:07"]

1. b3 {[%clk 0:02:57]}  Nf6 {[%clk 0:02:55]} 2. Bb2 {[%clk 0:02:57]}  e6 {[%clk 0:02:55]} 3. g3 {[%clk 0:02:56]}  d5 {[%clk 0:02:56]} 4. Bg2 {[%clk 0:02:57]}  Be7 {[%clk 0:02:56]} 5. e3 {[%clk 0:02:57]}  O-O {[%clk 0:02:56]} 6. Ne2 {[%clk 0:02:57]}  a5 {[%clk 0:02:56]} 7. a4 {[%clk 0:02:55]}  Nc6 {[%clk 0:02:52]} 8. d4 {[%clk 0:02:53]}  b6 {[%clk 0:02:47]} 9. O-O {[%clk 0:02:53]}  Ba6 {[%clk 0:02:47]} 10. Re1 {[%clk 0:02:51]}  Nb4 {[%clk 0:02:47]} 11. Nf4 {[%clk 0:02:49]}  c5 {[%clk 0:02:45]} 12. c3 {[%clk 0:02:45]}  Nc6 {[%clk 0:02:45]} 13. Na3 {[%clk 0:02:45]}  cxd4 {[%clk 0:02:42]} 14. exd4 {[%clk 0:02:45]}  Rc8 {[%clk 0:02:42]} 15. Nb5 {[%clk 0:02:39]}  Qd7 {[%clk 0:02:18]} 16. Rc1 {[%clk 0:02:24]}  Rfe8 {[%clk 0:02:16]} 17. Nd3 {[%clk 0:02:21]}  Bxb5 {[%clk 0:02:10]} 18. axb5 {[%clk 0:02:21]}  Na7 {[%clk 0:02:10]} 19. c4 {[%clk 0:02:21]}  a4 {[%clk 0:01:17]} 20. Ne5 {[%clk 0:02:17]}  Qd6 {[%clk 0:01:08]} 21. bxa4 {[%clk 0:02:15]}  dxc4 {[%clk 0:01:08]} 22. Nxc4 {[%clk 0:02:06]}  Qd8 {[%clk 0:00:55]} 23. Qb3 {[%clk 0:01:59]}  Nd5 {[%clk 0:00:54]} 24. Ne5 {[%clk 0:01:54]}  Rxc1 {[%clk 0:00:48]} 25. Rxc1 {[%clk 0:01:53]}  Bf6 {[%clk 0:00:49]} 26. h4 {[%clk 0:01:47]}  Nc8 {[%clk 0:00:42]} 27. Ba3 {[%clk 0:01:39]}  Nce7 {[%clk 0:00:39]} 28. Rc4 {[%clk 0:01:23]}  Nf5 {[%clk 0:00:38]} 29. Nc6 {[%clk 0:01:21]}  Qd7 {[%clk 0:00:36]} 30. Qd3 {[%clk 0:01:18]}  g6 {[%clk 0:00:33]} 31. Rc1 {[%clk 0:01:17]}  Kg7 {[%clk 0:00:25]} 32. Ne5 {[%clk 0:01:14]}  Qd8 {[%clk 0:00:23]} 33. h5 {[%clk 0:01:13]}  gxh5 {[%clk 0:00:22]} 34. Be4 {[%clk 0:01:09]}  Nde7 {[%clk 0:00:22]} 35. Bxe7 {[%clk 0:01:06]}  Rxe7 {[%clk 0:00:16]} 36. Nc6 {[%clk 0:01:05]}  Qd6 {[%clk 0:00:12]} 37. Bxf5 {[%clk 0:01:04]}  exf5 {[%clk 0:00:11]} 38. Nxe7 {[%clk 0:01:05]}  Qxe7 {[%clk 0:00:12]} 39. Qxf5 {[%clk 0:01:04]}  Bxd4 {[%clk 0:00:12]} 40. Kg2 {[%clk 0:01:02]}  Qe2 {[%clk 0:00:11]} 41. Rc7 {[%clk 0:01:00]}  Qa2 {[%clk 0:00:07]} 42. Qg5+ {[%clk 0:00:58]} 1-0


[Site "https://www.chess.com"]

[Event "Titled Tuesday Blitz February 28 Late 2023"]
[White "Ristic, Nebojsa B"]
[Black "Andreikin, Dmitry"]
[WhiteFideId "935468"]
[BlackFideId "4158814"]
[WhiteElo "2303"]
[BlackElo "2736"]
[Result "0-1"]
[Round "01"]
[TimeControl "180+2"]
[Date "2023.02.28"]
[WhiteClock "0:00:06"]
[BlackClock "0:00:55"]

1. d4 {[%clk 0:03:00]}  d5 {[%clk 0:03:00]} 2. Bf4 {[%clk 0:02:58]}  Nf6 {[%clk 0:02:59]} 3. e3 {[%clk 0:02:53]}  c5 {[%clk 0:03:00]} 4. Nf3 {[%clk 0:02:51]}  Nc6 {[%clk 0:03:00]} 5. Nbd2 {[%clk 0:02:51]}  Bg4 {[%clk 0:02:58]} 6. c3 {[%clk 0:02:51]}  a6 {[%clk 0:02:59]} 7. a4 {[%clk 0:02:41]}  e6 {[%clk 0:02:57]} 8. Qb3 {[%clk 0:02:36]}  Bd6 {[%clk 0:02:38]} 9. Bxd6 {[%clk 0:02:21]}  Qxd6 {[%clk 0:02:39]} 10. Qxb7 {[%clk 0:02:15]}  O-O {[%clk 0:02:37]} 11. Qb3 {[%clk 0:02:14]}  cxd4 {[%clk 0:02:29]} 12. exd4 {[%clk 0:02:01]}  e5 {[%clk 0:02:28]} 13. dxe5 {[%clk 0:01:58]}  Rfe8 {[%clk 0:02:23]} 14. Be2 {[%clk 0:01:50]}  Rxe5 {[%clk 0:02:22]} 15. Nxe5 {[%clk 0:01:44]}  Qxe5 {[%clk 0:02:23]} 16. Nf3 {[%clk 0:01:41]}  Bxf3 {[%clk 0:02:22]} 17. gxf3 {[%clk 0:01:40]}  Re8 {[%clk 0:02:23]} 18. Qc2 {[%clk 0:01:39]}  d4 {[%clk 0:02:19]} 19. Kf1 {[%clk 0:01:37]}  Nd5 {[%clk 0:02:17]} 20. Qe4 {[%clk 0:01:25]}  dxc3 {[%clk 0:02:15]} 21. bxc3 {[%clk 0:01:18]}  Nxc3 {[%clk 0:02:02]} 22. Qxe5 {[%clk 0:01:18]}  Nxe5 {[%clk 0:02:00]} 23. Bxa6 {[%clk 0:01:19]}  Nxf3 {[%clk 0:02:01]} 24. Kg2 {[%clk 0:01:04]}  Nh4+ {[%clk 0:01:57]} 25. Kh3 {[%clk 0:01:03]}  g5 {[%clk 0:01:57]} 26. Rhe1 {[%clk 0:00:59]}  Ra8 {[%clk 0:01:55]} 27. Bb5 {[%clk 0:00:55]}  Kg7 {[%clk 0:01:48]} 28. Rac1 {[%clk 0:00:48]}  Nd5 {[%clk 0:01:47]} 29. Rc4 {[%clk 0:00:39]}  Ng6 {[%clk 0:01:40]} 30. Kg2 {[%clk 0:00:33]}  Ndf4+ {[%clk 0:01:35]} 31. Kf1 {[%clk 0:00:32]}  Nh4 {[%clk 0:01:31]} 32. Ra1 {[%clk 0:00:25]}  Nf3 {[%clk 0:01:29]} 33. Bc6 {[%clk 0:00:23]}  Nd2+ {[%clk 0:01:26]} 34. Ke1 {[%clk 0:00:19]}  Rd8 {[%clk 0:01:25]} 35. Rc5 {[%clk 0:00:15]}  Nb3 {[%clk 0:01:16]} 36. Rxg5+ {[%clk 0:00:13]}  Kf6 {[%clk 0:01:16]} 37. Rb1 {[%clk 0:00:13]}  Nd3+ {[%clk 0:01:11]} 38. Ke2 {[%clk 0:00:11]}  Ndc1+ {[%clk 0:01:09]} 39. Kf3 {[%clk 0:00:10]}  Kxg5 {[%clk 0:01:07]} 40. a5 {[%clk 0:00:10]}  Nd2+ {[%clk 0:01:07]} 41. Kg3 {[%clk 0:00:09]}  Ne2+ {[%clk 0:01:06]} 42. Kg2 {[%clk 0:00:09]}  Nf4+ {[%clk 0:01:04]} 43. Kg3 {[%clk 0:00:07]}  Rd3+ {[%clk 0:01:01]} 44. f3 {[%clk 0:00:08]}  Nxb1 {[%clk 0:01:01]} 45. a6 {[%clk 0:00:07]}  Ra3 {[%clk 0:01:01]} 46. h4+ {[%clk 0:00:07]}  Kf5 {[%clk 0:00:56]} 47. Be4+ {[%clk 0:00:06]}  Ke5 {[%clk 0:00:56]} 48. Bxb1 {[%clk 0:00:06]}  f5 {[%clk 0:00:55]} 0-1


[Site "https://www.chess.com"]

[Event "Titled Tuesday Blitz February 28 Late 2023"]
[White "Firouzja, Alireza"]
[Black "Sadovsky, Artem"]
[WhiteFideId "12573981"]
[BlackFideId "4155840"]
[WhiteElo "2904"]
[BlackElo "2314"]
[Result "1-0"]
[Round "01"]
[TimeControl "180+2"]
[Date "2023.02.28"]
[WhiteClock "0:01:56"]
[BlackClock "0:00:16"]

1. d4 {[%clk 0:03:00]}  g6 {[%clk 0:02:57]} 2. e4 {[%clk 0:03:00]}  Bg7 {[%clk 0:02:57]} 3. Nc3 {[%clk 0:03:01]}  c6 {[%clk 0:02:57]} 4. f4 {[%clk 0:02:56]}  d5 {[%clk 0:02:58]} 5. e5 {[%clk 0:02:57]}  h5 {[%clk 0:02:58]} 6. h3 {[%clk 0:02:56]}  Nh6 {[%clk 0:02:58]} 7. Be3 {[%clk 0:02:52]}  Nf5 {[%clk 0:02:52]} 8. Bf2 {[%clk 0:02:53]}  h4 {[%clk 0:02:53]} 9. Nf3 {[%clk 0:02:53]}  e6 {[%clk 0:02:47]} 10. Bd3 {[%clk 0:02:52]}  Bf8 {[%clk 0:02:46]} 11. O-O {[%clk 0:02:48]}  Be7 {[%clk 0:02:46]} 12. Ne2 {[%clk 0:02:45]}  b6 {[%clk 0:02:44]} 13. Rc1 {[%clk 0:02:44]}  Ba6 {[%clk 0:02:44]} 14. c4 {[%clk 0:02:38]}  Kf8 {[%clk 0:02:32]} 15. b3 {[%clk 0:02:34]}  Kg7 {[%clk 0:02:29]} 16. Qd2 {[%clk 0:02:33]}  Bb7 {[%clk 0:02:25]} 17. Rc2 {[%clk 0:02:28]}  a5 {[%clk 0:02:25]} 18. Kh2 {[%clk 0:02:16]}  Na6 {[%clk 0:02:24]} 19. cxd5 {[%clk 0:02:12]}  cxd5 {[%clk 0:02:20]} 20. Rcc1 {[%clk 0:02:12]}  Ba3 {[%clk 0:02:15]} 21. Rcd1 {[%clk 0:02:06]}  Bb4 {[%clk 0:02:11]} 22. Qb2 {[%clk 0:02:05]}  Qe7 {[%clk 0:02:07]} 23. Neg1 {[%clk 0:02:03]}  Rac8 {[%clk 0:02:02]} 24. Qe2 {[%clk 0:02:03]}  Nb8 {[%clk 0:01:56]} 25. Ng5 {[%clk 0:02:03]}  Nc6 {[%clk 0:01:47]} 26. Bxf5 {[%clk 0:02:03]}  exf5 {[%clk 0:01:42]} 27. N1f3 {[%clk 0:01:56]}  Nd8 {[%clk 0:01:18]} 28. Bxh4 {[%clk 0:01:55]}  Rxh4 {[%clk 0:01:16]} 29. Nxh4 {[%clk 0:01:55]}  Ne6 {[%clk 0:01:15]} 30. Nxe6+ {[%clk 0:01:54]}  fxe6 {[%clk 0:01:15]} 31. Nf3 {[%clk 0:01:55]}  Rc3 {[%clk 0:01:07]} 32. Rc1 {[%clk 0:01:55]}  Qc7 {[%clk 0:01:06]} 33. Rxc3 {[%clk 0:01:55]}  Qxc3 {[%clk 0:01:05]} 34. Qb5 {[%clk 0:01:56]}  Qc7 {[%clk 0:01:04]} 35. Qe8 {[%clk 0:01:54]}  Be7 {[%clk 0:00:54]} 36. Rc1 {[%clk 0:01:49]}  Qd8 {[%clk 0:00:50]} 37. Qxd8 {[%clk 0:01:48]}  Bxd8 {[%clk 0:00:51]} 38. Ng5 {[%clk 0:01:48]}  Bc8 {[%clk 0:00:44]} 39. Rxc8 {[%clk 0:01:48]}  Bxg5 {[%clk 0:00:37]} 40. fxg5 {[%clk 0:01:48]}  Kf7 {[%clk 0:00:34]} 41. Rc7+ {[%clk 0:01:48]}  Kg8 {[%clk 0:00:33]} 42. h4 {[%clk 0:01:49]}  b5 {[%clk 0:00:32]} 43. h5 {[%clk 0:01:50]}  gxh5 {[%clk 0:00:27]} 44. Kg3 {[%clk 0:01:50]}  a4 {[%clk 0:00:24]} 45. Kh4 {[%clk 0:01:51]}  axb3 {[%clk 0:00:20]} 46. axb3 {[%clk 0:01:52]}  f4 {[%clk 0:00:17]} 47. g6 {[%clk 0:01:53]}  f3 {[%clk 0:00:17]} 48. gxf3 {[%clk 0:01:54]}  b4 {[%clk 0:00:16]} 49. Kg5 {[%clk 0:01:55]}  h4 {[%clk 0:00:16]} 50. Kf6 {[%clk 0:01:56]} 1-0


[Site "https://www.chess.com"]

[Event "Titled Tuesday Blitz February 28 Late 2023"]
[White "WindWhistler11"]
[Black "Duda, Jan-Krzysztof"]
[BlackFideId "1170546"]
[WhiteElo "2524"]
[BlackElo "2790"]
[Result "0-1"]
[Round "01"]
[TimeControl "180+2"]
[Date "2023.02.28"]
[WhiteClock "0:00:02"]
[BlackClock "0:01:10"]

1. Nf3 {[%clk 0:02:58]}  g6 {[%clk 0:02:58]} 2. d3 {[%clk 0:02:59]}  Bg7 {[%clk 0:02:58]} 3. Nbd2 {[%clk 0:02:59]}  d5 {[%clk 0:02:57]} 4. e4 {[%clk 0:03:00]}  e6 {[%clk 0:02:50]} 5. Be2 {[%clk 0:02:58]}  c5 {[%clk 0:02:50]} 6. O-O {[%clk 0:02:55]}  Nc6 {[%clk 0:02:50]} 7. Re1 {[%clk 0:02:56]}  Nge7 {[%clk 0:02:49]} 8. c3 {[%clk 0:02:55]}  b6 {[%clk 0:02:48]} 9. Qc2 {[%clk 0:02:54]}  Bb7 {[%clk 0:02:48]} 10. Nf1 {[%clk 0:02:52]}  O-O {[%clk 0:02:39]} 11. Ng3 {[%clk 0:02:50]}  Qd7 {[%clk 0:02:38]} 12. h4 {[%clk 0:02:46]}  h5 {[%clk 0:02:34]} 13. Bg5 {[%clk 0:02:43]}  Rac8 {[%clk 0:02:32]} 14. Rad1 {[%clk 0:02:39]}  d4 {[%clk 0:02:15]} 15. Qc1 {[%clk 0:02:15]}  e5 {[%clk 0:01:58]} 16. Bh6 {[%clk 0:01:58]}  Qd6 {[%clk 0:01:56]} 17. Bxg7 {[%clk 0:01:48]}  Kxg7 {[%clk 0:01:56]} 18. Qg5 {[%clk 0:01:40]}  Kh7 {[%clk 0:01:56]} 19. Qd2 {[%clk 0:01:23]}  f6 {[%clk 0:01:55]} 20. c4 {[%clk 0:01:18]}  Rc7 {[%clk 0:01:55]} 21. a3 {[%clk 0:01:15]}  Bc8 {[%clk 0:01:54]} 22. Rf1 {[%clk 0:01:12]}  Ng8 {[%clk 0:01:53]} 23. Nh2 {[%clk 0:01:12]}  Nh6 {[%clk 0:01:53]} 24. Rb1 {[%clk 0:01:09]}  a6 {[%clk 0:01:49]} 25. b4 {[%clk 0:01:06]}  cxb4 {[%clk 0:01:45]} 26. axb4 {[%clk 0:01:07]}  b5 {[%clk 0:01:46]} 27. c5 {[%clk 0:01:07]}  Qe7 {[%clk 0:01:44]} 28. Bd1 {[%clk 0:01:03]}  Be6 {[%clk 0:01:39]} 29. Bb3 {[%clk 0:00:58]}  Bxb3 {[%clk 0:01:39]} 30. Rxb3 {[%clk 0:00:58]}  Ra7 {[%clk 0:01:39]} 31. Ra3 {[%clk 0:00:58]}  a5 {[%clk 0:01:30]} 32. Rfa1 {[%clk 0:00:22]}  Rfa8 {[%clk 0:01:29]} 33. Rf1 {[%clk 0:00:21]}  axb4 {[%clk 0:01:12]} 34. Rxa7 {[%clk 0:00:22]}  Qxa7 {[%clk 0:01:11]} 35. f4 {[%clk 0:00:23]}  Qa2 {[%clk 0:01:12]} 36. Qd1 {[%clk 0:00:19]}  Qb2 {[%clk 0:01:10]} 37. fxe5 {[%clk 0:00:06]}  Ra2 {[%clk 0:01:10]} 38. Qf3 {[%clk 0:00:02]}  Nxe5 {[%clk 0:01:10]} 0-1


[Site "https://www.chess.com"]

[Event "Titled Tuesday Blitz February 28 Late 2023"]
[White "Paravyan, David"]
[Black "Remolar Gallen, Jose"]
[WhiteFideId "4194985"]
[BlackFideId "2215187"]
[WhiteElo "2577"]
[BlackElo "2223"]
[Result "1-0"]
[Round "01"]
[TimeControl "180+2"]
[Date "2023.02.28"]
[WhiteClock "0:00:22"]
[BlackClock "0:00:04"]

1. d4 {[%clk 0:02:59]}  Nf6 {[%clk 0:02:59]} 2. c4 {[%clk 0:02:59]}  g6 {[%clk 0:02:59]} 3. Nc3 {[%clk 0:02:58]}  d6 {[%clk 0:02:59]} 4. e4 {[%clk 0:02:58]}  Bg7 {[%clk 0:02:59]} 5. Be2 {[%clk 0:02:58]}  O-O {[%clk 0:02:58]} 6. Nf3 {[%clk 0:02:59]}  e5 {[%clk 0:02:57]} 7. O-O {[%clk 0:02:59]}  Nc6 {[%clk 0:02:56]} 8. d5 {[%clk 0:02:58]}  Ne7 {[%clk 0:02:56]} 9. b4 {[%clk 0:02:55]}  Nh5 {[%clk 0:02:56]} 10. Re1 {[%clk 0:02:47]}  h6 {[%clk 0:02:54]} 11. a4 {[%clk 0:02:46]}  Nf4 {[%clk 0:02:49]} 12. Ra3 {[%clk 0:02:46]}  g5 {[%clk 0:02:47]} 13. Bf1 {[%clk 0:02:42]}  Neg6 {[%clk 0:02:46]} 14. Be3 {[%clk 0:02:36]}  f5 {[%clk 0:02:30]} 15. Nd2 {[%clk 0:02:27]}  Nxg2 {[%clk 0:02:09]} 16. Bxg2 {[%clk 0:01:45]}  f4 {[%clk 0:02:09]} 17. Bxa7 {[%clk 0:01:45]}  Rxa7 {[%clk 0:02:05]} 18. Nb5 {[%clk 0:01:46]}  Ra6 {[%clk 0:01:58]} 19. Qh5 {[%clk 0:01:41]}  Nh4 {[%clk 0:01:54]} 20. Bh3 {[%clk 0:01:41]}  Bxh3 {[%clk 0:01:36]} 21. Rxh3 {[%clk 0:01:42]}  Rxa4 {[%clk 0:01:31]} 22. Kh1 {[%clk 0:01:41]}  Rxb4 {[%clk 0:01:14]} 23. Rxh4 {[%clk 0:01:41]}  gxh4 {[%clk 0:01:12]} 24. Rg1 {[%clk 0:01:41]}  Rf6 {[%clk 0:00:52]} 25. Nf3 {[%clk 0:01:19]}  c6 {[%clk 0:00:46]} 26. Qg4 {[%clk 0:00:42]}  Qf8 {[%clk 0:00:33]} 27. Nc7 {[%clk 0:00:40]}  Rxc4 {[%clk 0:00:15]} 28. Nxh4 {[%clk 0:00:37]}  Rxe4 {[%clk 0:00:10]} 29. Ne6 {[%clk 0:00:30]}  Rxe6 {[%clk 0:00:10]} 30. Qxe6+ {[%clk 0:00:30]}  Qf7 {[%clk 0:00:11]} 31. Rxg7+ {[%clk 0:00:30]}  Kxg7 {[%clk 0:00:10]} 32. Nf5+ {[%clk 0:00:30]}  Kf8 {[%clk 0:00:07]} 33. Qxd6+ {[%clk 0:00:22]}  Ke8 {[%clk 0:00:05]} 34. Qb8+ {[%clk 0:00:22]}  Kd7 {[%clk 0:00:04]} 35. Qxb7+ {[%clk 0:00:22]} 1-0


[Site "https://www.chess.com"]

[Event "Titled Tuesday Blitz February 28 Late 2023"]
[White "Arencibia Monduy, Antonio"]
[Black "Hakobyan, Aram"]
[WhiteFideId "3507939"]
[BlackFideId "13306677"]
[WhiteElo "2520"]
[BlackElo "2563"]
[Result "1-0"]
[Round "01"]
[TimeControl "180+2"]
[Date "2023.02.28"]
[WhiteClock "0:00:25"]
[BlackClock "0:00:08"]

1. e4 {[%clk 0:02:58]}  c5 {[%clk 0:03:00]} 2. Nf3 {[%clk 0:02:58]}  d6 {[%clk 0:03:00]} 3. c3 {[%clk 0:02:59]}  Nf6 {[%clk 0:03:00]} 4. Be2 {[%clk 0:02:59]}  Bd7 {[%clk 0:03:01]} 5. d3 {[%clk 0:02:59]}  g6 {[%clk 0:03:01]} 6. O-O {[%clk 0:02:59]}  Bg7 {[%clk 0:03:02]} 7. Re1 {[%clk 0:02:59]}  O-O {[%clk 0:03:02]} 8. Qc2 {[%clk 0:02:57]}  Nc6 {[%clk 0:03:01]} 9. d4 {[%clk 0:02:56]}  cxd4 {[%clk 0:02:48]} 10. cxd4 {[%clk 0:02:55]}  Bg4 {[%clk 0:02:49]} 11. Be3 {[%clk 0:02:51]}  e5 {[%clk 0:02:40]} 12. dxe5 {[%clk 0:02:50]}  dxe5 {[%clk 0:02:37]} 13. Rd1 {[%clk 0:02:43]}  Qa5 {[%clk 0:02:31]} 14. Nc3 {[%clk 0:02:40]}  Rfd8 {[%clk 0:02:31]} 15. Qb3 {[%clk 0:02:32]}  Bxf3 {[%clk 0:02:24]} 16. Bxf3 {[%clk 0:02:32]}  Nd4 {[%clk 0:02:25]} 17. Bxd4 {[%clk 0:02:29]}  exd4 {[%clk 0:02:25]} 18. Nd5 {[%clk 0:02:29]}  Nxd5 {[%clk 0:02:24]} 19. exd5 {[%clk 0:02:29]}  Rd7 {[%clk 0:02:12]} 20. Rac1 {[%clk 0:02:28]}  Bf6 {[%clk 0:02:09]} 21. g3 {[%clk 0:02:15]}  Kg7 {[%clk 0:02:10]} 22. Kg2 {[%clk 0:02:14]}  h5 {[%clk 0:02:10]} 23. h4 {[%clk 0:02:15]}  Re8 {[%clk 0:02:09]} 24. a3 {[%clk 0:02:09]}  a6 {[%clk 0:02:05]} 25. Qc4 {[%clk 0:01:58]}  Qb6 {[%clk 0:01:52]} 26. b4 {[%clk 0:01:53]}  Ree7 {[%clk 0:01:50]} 27. Qc5 {[%clk 0:01:50]}  Qd8 {[%clk 0:01:50]} 28. Qc8 {[%clk 0:01:44]}  Re8 {[%clk 0:01:39]} 29. Qxd8 {[%clk 0:01:43]}  Rexd8 {[%clk 0:01:40]} 30. Kf1 {[%clk 0:01:40]}  Ra8 {[%clk 0:01:36]} 31. Ke2 {[%clk 0:01:30]}  a5 {[%clk 0:01:37]} 32. b5 {[%clk 0:01:30]}  a4 {[%clk 0:01:36]} 33. Rc4 {[%clk 0:01:14]}  Ra5 {[%clk 0:01:31]} 34. Rb1 {[%clk 0:01:14]}  b6 {[%clk 0:01:18]} 35. Kd3 {[%clk 0:01:11]}  Be7 {[%clk 0:01:16]} 36. Rc6 {[%clk 0:00:58]}  Bc5 {[%clk 0:00:53]} 37. Rxc5 {[%clk 0:00:58]}  bxc5 {[%clk 0:00:53]} 38. Kc4 {[%clk 0:00:59]}  Kf6 {[%clk 0:00:44]} 39. Kxc5 {[%clk 0:00:55]}  d3 {[%clk 0:00:44]} 40. d6 {[%clk 0:00:49]}  Raa7 {[%clk 0:00:20]} 41. Bc6 {[%clk 0:00:45]}  Rd8 {[%clk 0:00:18]} 42. Rd1 {[%clk 0:00:44]}  Rc8 {[%clk 0:00:09]} 43. Rxd3 {[%clk 0:00:43]}  Rd7 {[%clk 0:00:10]} 44. Kd5 {[%clk 0:00:32]}  Rdd8 {[%clk 0:00:09]} 45. Re3 {[%clk 0:00:28]}  Rb8 {[%clk 0:00:08]} 46. d7 {[%clk 0:00:25]}  g5 {[%clk 0:00:06]} 47. hxg5+ {[%clk 0:00:24]}  Kxg5 {[%clk 0:00:07]} 48. Kd6 {[%clk 0:00:25]}  h4 {[%clk 0:00:06]} 49. gxh4+ {[%clk 0:00:24]}  Kxh4 {[%clk 0:00:07]} 50. Re8 {[%clk 0:00:24]}  Kg5 {[%clk 0:00:07]} 51. Rxd8 {[%clk 0:00:24]}  Rxd8 {[%clk 0:00:08]} 52. Ke7 {[%clk 0:00:25]} 1-0


[Site "https://www.chess.com"]